[Event "Early-Titled-Tuesday-Blitz-January-16-2024"]
[Site "Chess.com"]
[Date "2024.01.16"]
[Round "10"]
[White "TregubovP"]
[Black "kidagent"]
[Result "1-0"]
[WhiteElo "2682"]
[BlackElo "2311"]
[TimeControl "180+1"]
[EndTime "9:57:50 PST"]
[Termination "TregubovP won on time"]

1. e4 {[%clk 0:03:00.9]} 1... c6 {[%clk 0:03:00.1]} 2. Nf3 {[%clk 0:03:00.5]}
2... d5 {[%clk 0:03:00.2]} 3. Nc3 {[%clk 0:03:01.2]} 3... Bg4 {[%clk 0:02:59.1]}
4. h3 {[%clk 0:03:00.9]} 4... Bxf3 {[%clk 0:02:58.9]} 5. Qxf3 {[%clk 0:03:01.5]}
5... e6 {[%clk 0:02:59]} 6. g3 {[%clk 0:03:01.6]} 6... Nd7 {[%clk 0:02:53.7]} 7.
d4 {[%clk 0:03:00.4]} 7... dxe4 {[%clk 0:02:51.6]} 8. Nxe4 {[%clk 0:03:00]} 8...
Ngf6 {[%clk 0:02:51.6]} 9. Bg2 {[%clk 0:02:59]} 9... Be7 {[%clk 0:02:47.4]} 10.
O-O {[%clk 0:02:58.5]} 10... O-O {[%clk 0:02:47.4]} 11. Rd1 {[%clk 0:02:57.8]}
11... Qb6 {[%clk 0:02:41.2]} 12. Be3 {[%clk 0:02:30.5]} 12... Nd5 {[%clk
0:02:38.1]} 13. Bd2 {[%clk 0:02:26.4]} 13... Qxd4 {[%clk 0:02:10.5]} 14. Bg5
{[%clk 0:02:14.4]} 14... Qxb2 {[%clk 0:01:55.5]} 15. Bxe7 {[%clk 0:02:05]} 15...
Nxe7 {[%clk 0:01:54.4]} 16. Rab1 {[%clk 0:02:05.1]} 16... Qxa2 {[%clk
0:01:46.7]} 17. Rxb7 {[%clk 0:02:01.5]} 17... Ne5 {[%clk 0:01:42.7]} 18. Qc3
{[%clk 0:02:00.1]} 18... N7g6 {[%clk 0:01:39.6]} 19. Nd6 {[%clk 0:01:50.7]}
19... Rad8 {[%clk 0:01:33.8]} 20. Ra1 {[%clk 0:01:47.7]} 20... Qxa1+ {[%clk
0:01:12.4]} 21. Qxa1 {[%clk 0:01:47.4]} 21... Rxd6 {[%clk 0:01:13.1]} 22. Rxa7
{[%clk 0:01:47.5]} 22... Rfd8 {[%clk 0:01:08.3]} 23. Ra8 {[%clk 0:01:47.4]}
23... h6 {[%clk 0:01:01.6]} 24. Rxd8+ {[%clk 0:01:42.1]} 24... Rxd8 {[%clk
0:01:01.1]} 25. h4 {[%clk 0:01:42.8]} 25... h5 {[%clk 0:00:56.6]} 26. f4 {[%clk
0:01:32]} 26... Ng4 {[%clk 0:00:44.1]} 27. Bxc6 {[%clk 0:01:31.7]} 27... Ne3
{[%clk 0:00:44.7]} 28. Qa5 {[%clk 0:01:17.8]} 28... Rd1+ {[%clk 0:00:35.3]} 29.
Kf2 {[%clk 0:01:17.9]} 29... Nxc2 {[%clk 0:00:27.3]} 30. Ba4 {[%clk 0:01:08.1]}
30... Rd5 {[%clk 0:00:08.9]} 31. Qa8+ {[%clk 0:00:50.6]} 31... Kh7 {[%clk
0:00:09.2]} 32. Qb7 {[%clk 0:00:44.4]} 32... Nd4 {[%clk 0:00:03.7]} 33. Qxf7
{[%clk 0:00:41.1]} 33... Rf5 {[%clk 0:00:02.8]} 34. Qd7 {[%clk 0:00:37]} 34...
e5 {[%clk 0:00:03]} 35. Bd1 {[%clk 0:00:25.9]} 35... Nf8 {[%clk 0:00:03]} 36.
Qd5 {[%clk 0:00:19.2]} 36... g6 {[%clk 0:00:01.9]} 37. Kg2 {[%clk 0:00:16.7]}
37... Nfe6 {[%clk 0:00:01.7]} 38. fxe5 {[%clk 0:00:16]} 1-0

[Event "Early-Titled-Tuesday-Blitz-January-16-2024"]
[Site "Chess.com"]
[Date "2024.01.16"]
[Round "10"]
[White "GMKrikor"]
[Black "Manukyan_Artak"]
[Result "1-0"]
[WhiteElo "2740"]
[BlackElo "2552"]
[TimeControl "180+1"]
[EndTime "9:57:50 PST"]
[Termination "GMKrikor won on time"]

1. Nf3 {[%clk 0:03:00.9]} 1... g6 {[%clk 0:02:58.4]} 2. c4 {[%clk 0:03:00.6]}
2... Bg7 {[%clk 0:02:57.7]} 3. e4 {[%clk 0:03:01.1]} 3... c5 {[%clk 0:02:57.5]}
4. d4 {[%clk 0:02:59.9]} 4... cxd4 {[%clk 0:02:57.5]} 5. Nxd4 {[%clk 0:03:00.8]}
5... Nc6 {[%clk 0:02:57.8]} 6. Be3 {[%clk 0:03:01.2]} 6... Nf6 {[%clk
0:02:57.2]} 7. Nc3 {[%clk 0:03:01.3]} 7... O-O {[%clk 0:02:56.5]} 8. Be2 {[%clk
0:03:01.7]} 8... d6 {[%clk 0:02:56.1]} 9. Nc2 {[%clk 0:03:02.3]} 9... h5 {[%clk
0:02:47.3]} 10. h3 {[%clk 0:03:01.6]} 10... Be6 {[%clk 0:02:42.4]} 11. O-O
{[%clk 0:03:01.5]} 11... Ne5 {[%clk 0:02:41.6]} 12. b3 {[%clk 0:03:00.8]} 12...
Qa5 {[%clk 0:02:06.9]} 13. Bd2 {[%clk 0:02:45.2]} 13... Nc6 {[%clk 0:01:59.4]}
14. Rc1 {[%clk 0:02:42.4]} 14... Qd8 {[%clk 0:01:54.2]} 15. Be3 {[%clk
0:02:36.6]} 15... Qa5 {[%clk 0:01:49.2]} 16. Bd2 {[%clk 0:02:36.2]} 16... Nd7
{[%clk 0:01:38.9]} 17. b4 {[%clk 0:02:16.8]} 17... Qd8 {[%clk 0:01:34.6]} 18.
Nd5 {[%clk 0:02:12.4]} 18... a5 {[%clk 0:01:19.4]} 19. b5 {[%clk 0:02:11.7]}
19... Bxd5 {[%clk 0:01:14.7]} 20. exd5 {[%clk 0:01:54.6]} 20... Nb4 {[%clk
0:01:04.7]} 21. a3 {[%clk 0:01:38.6]} 21... Nxc2 {[%clk 0:00:59.2]} 22. Qxc2
{[%clk 0:01:34.4]} 22... Qc7 {[%clk 0:00:49.5]} 23. Rfe1 {[%clk 0:01:32.8]}
23... Nc5 {[%clk 0:00:42.2]} 24. Bg5 {[%clk 0:01:23.8]} 24... Bf6 {[%clk
0:00:34]} 25. Bh6 {[%clk 0:01:24.1]} 25... Bg7 {[%clk 0:00:32.1]} 26. Bg5 {[%clk
0:01:24.3]} 26... Bf6 {[%clk 0:00:31.6]} 27. Bf4 {[%clk 0:01:19.6]} 27... Be5
{[%clk 0:00:28.8]} 28. Be3 {[%clk 0:01:19.7]} 28... Rac8 {[%clk 0:00:21.9]} 29.
f4 {[%clk 0:01:15.4]} 29... Bg7 {[%clk 0:00:20.6]} 30. f5 {[%clk 0:01:16]} 30...
a4 {[%clk 0:00:17.8]} 31. fxg6 {[%clk 0:01:15.6]} 31... f5 {[%clk 0:00:14.9]}
32. Rcd1 {[%clk 0:00:48.5]} 32... Ne4 {[%clk 0:00:09.4]} 33. Rf1 {[%clk
0:00:46.2]} 33... Ng3 {[%clk 0:00:06.9]} 34. Bd3 {[%clk 0:00:43.1]} 34... Nxf1
{[%clk 0:00:06.2]} 35. Rxf1 {[%clk 0:00:44]} 35... f4 {[%clk 0:00:03.3]} 36. Bf2
{[%clk 0:00:13.8]} 1-0

[Event "Early-Titled-Tuesday-Blitz-January-16-2024"]
[Site "Chess.com"]
[Date "2024.01.16"]
[Round "10"]
[White "karinachess1"]
[Black "NastyaHn"]
[Result "1-0"]
[WhiteElo "2613"]
[BlackElo "2343"]
[TimeControl "180+1"]
[EndTime "9:57:54 PST"]
[Termination "karinachess1 won by checkmate"]

1. d4 {[%clk 0:02:59.8]} 1... Nf6 {[%clk 0:02:56.8]} 2. c4 {[%clk 0:02:58.3]}
2... e6 {[%clk 0:02:55.9]} 3. Nc3 {[%clk 0:02:58.3]} 3... d5 {[%clk 0:02:56.2]}
4. cxd5 {[%clk 0:02:58]} 4... exd5 {[%clk 0:02:56.3]} 5. Bg5 {[%clk 0:02:58.3]}
5... Be7 {[%clk 0:02:56.7]} 6. e3 {[%clk 0:02:58.5]} 6... c6 {[%clk 0:02:56.7]}
7. Bd3 {[%clk 0:02:58.6]} 7... O-O {[%clk 0:02:57]} 8. Qc2 {[%clk 0:02:58.3]}
8... h6 {[%clk 0:02:56.9]} 9. Bh4 {[%clk 0:02:58.7]} 9... Nbd7 {[%clk
0:02:56.1]} 10. Nf3 {[%clk 0:02:59]} 10... Re8 {[%clk 0:02:56.4]} 11. O-O {[%clk
0:02:58.9]} 11... Ne4 {[%clk 0:02:56.6]} 12. Bxe7 {[%clk 0:02:58.2]} 12... Qxe7
{[%clk 0:02:57]} 13. Rab1 {[%clk 0:02:58.1]} 13... a5 {[%clk 0:02:37.8]} 14. a3
{[%clk 0:02:57.6]} 14... Nxc3 {[%clk 0:02:36.4]} 15. Qxc3 {[%clk 0:02:57.7]}
15... a4 {[%clk 0:02:35.2]} 16. Bc2 {[%clk 0:02:51.4]} 16... Nf6 {[%clk
0:02:29.9]} 17. Nd2 {[%clk 0:02:36]} 17... Qd6 {[%clk 0:02:26.3]} 18. f3 {[%clk
0:02:23.5]} 18... Rd8 {[%clk 0:02:00.3]} 19. Rbe1 {[%clk 0:02:12.1]} 19... Be6
{[%clk 0:01:58.2]} 20. Qd3 {[%clk 0:02:11.3]} 20... c5 {[%clk 0:01:51.9]} 21.
Nb1 {[%clk 0:02:05.6]} 21... c4 {[%clk 0:01:45.2]} 22. Qd2 {[%clk 0:02:05.7]}
22... b5 {[%clk 0:01:45]} 23. Nc3 {[%clk 0:02:05.8]} 23... Rab8 {[%clk
0:01:39.7]} 24. Rd1 {[%clk 0:01:59.1]} 24... Qd7 {[%clk 0:01:27.9]} 25. e4
{[%clk 0:01:55.7]} 25... dxe4 {[%clk 0:01:28.1]} 26. fxe4 {[%clk 0:01:55.7]}
26... Bg4 {[%clk 0:01:28.4]} 27. Ne2 {[%clk 0:01:41.5]} 27... Qa7 {[%clk
0:01:10.6]} 28. e5 {[%clk 0:01:37.7]} 28... Nd5 {[%clk 0:01:04]} 29. h3 {[%clk
0:01:31]} 29... Bh5 {[%clk 0:01:00.1]} 30. Be4 {[%clk 0:01:17.7]} 30... c3
{[%clk 0:00:48.3]} 31. Nxc3 {[%clk 0:01:12.1]} 31... Nxc3 {[%clk 0:00:46.7]} 32.
bxc3 {[%clk 0:01:06.4]} 32... Bxd1 {[%clk 0:00:46.7]} 33. Qxd1 {[%clk
0:01:06.8]} 33... Rbc8 {[%clk 0:00:44.6]} 34. Qf3 {[%clk 0:01:02.6]} 34... b4
{[%clk 0:00:34.2]} 35. axb4 {[%clk 0:00:58.7]} 35... a3 {[%clk 0:00:34.2]} 36.
Bd5 {[%clk 0:00:59.3]} 36... Rc7 {[%clk 0:00:09.9]} 37. Ba2 {[%clk 0:00:54.9]}
37... Rf8 {[%clk 0:00:06.5]} 38. e6 {[%clk 0:00:53.5]} 38... Kh8 {[%clk
0:00:04.4]} 39. exf7 {[%clk 0:00:52.3]} 39... Qb6 {[%clk 0:00:03.7]} 40. Re1
{[%clk 0:00:39.1]} 40... Qd6 {[%clk 0:00:02.2]} 41. Re8 {[%clk 0:00:37]} 41...
Rc8 {[%clk 0:00:02.3]} 42. Re6 {[%clk 0:00:31.8]} 42... Qc7 {[%clk 0:00:02]} 43.
Rxh6+ {[%clk 0:00:30.5]} 43... gxh6 {[%clk 0:00:01.7]} 44. Qf6+ {[%clk
0:00:30.7]} 44... Kh7 {[%clk 0:00:02]} 45. Bb1# {[%clk 0:00:31.1]} 1-0

[Event "Early-Titled-Tuesday-Blitz-January-16-2024"]
[Site "Chess.com"]
[Date "2024.01.16"]
[Round "10"]
[White "koncheto"]
[Black "InitiatingASC"]
[Result "1-0"]
[WhiteElo "2585"]
[BlackElo "2431"]
[TimeControl "180+1"]
[EndTime "9:57:54 PST"]
[Termination "koncheto won by checkmate"]

1. e4 {[%clk 0:03:00.9]} 1... c5 {[%clk 0:02:48.7]} 2. Nf3 {[%clk 0:02:59.2]}
2... Nc6 {[%clk 0:02:49]} 3. d4 {[%clk 0:02:58.5]} 3... cxd4 {[%clk 0:02:49.9]}
4. Nxd4 {[%clk 0:02:58.9]} 4... Nf6 {[%clk 0:02:50.2]} 5. Nc3 {[%clk 0:02:58.7]}
5... e5 {[%clk 0:02:50.8]} 6. Ndb5 {[%clk 0:02:58.8]} 6... h6 {[%clk 0:02:51]}
7. Nd5 {[%clk 0:02:54.2]} 7... Nxd5 {[%clk 0:02:50.9]} 8. exd5 {[%clk
0:02:54.4]} 8... a6 {[%clk 0:02:51.8]} 9. dxc6 {[%clk 0:02:48.2]} 9... axb5
{[%clk 0:02:52.7]} 10. cxb7 {[%clk 0:02:19.5]} 10... Bxb7 {[%clk 0:02:53.6]} 11.
Qe2 {[%clk 0:02:18.4]} 11... Qc7 {[%clk 0:02:20.7]} 12. Qxb5 {[%clk 0:02:09.5]}
12... Ba6 {[%clk 0:02:16.1]} 13. Qa4 {[%clk 0:01:56.1]} 13... Bb7 {[%clk
0:02:06.4]} 14. Qb3 {[%clk 0:01:52.7]} 14... Bc5 {[%clk 0:02:00.6]} 15. Bd3
{[%clk 0:01:33.9]} 15... Bxg2 {[%clk 0:01:51.9]} 16. Rg1 {[%clk 0:01:26.6]}
16... Bh3 {[%clk 0:01:31]} 17. Rxg7 {[%clk 0:01:02.8]} 17... Be6 {[%clk
0:01:30.9]} 18. Qc3 {[%clk 0:01:00.5]} 18... Qb6 {[%clk 0:01:24.7]} 19. Qd2
{[%clk 0:00:38.6]} 19... Rxa2 {[%clk 0:01:03.1]} 20. Rxa2 {[%clk 0:00:36.6]}
20... Bxa2 {[%clk 0:01:02.8]} 21. Qe2 {[%clk 0:00:29.7]} 21... Be6 {[%clk
0:01:01]} 22. Kf1 {[%clk 0:00:23.1]} 22... Qc6 {[%clk 0:00:36.2]} 23. Be4 {[%clk
0:00:18.5]} 23... Qa4 {[%clk 0:00:35.5]} 24. Bd3 {[%clk 0:00:08.8]} 24... Qh4
{[%clk 0:00:33.9]} 25. Kg1 {[%clk 0:00:03.3]} 25... Kf8 {[%clk 0:00:25.1]} 26.
Rg3 {[%clk 0:00:03.9]} 26... Rg8 {[%clk 0:00:23.4]} 27. Be3 {[%clk 0:00:04.5]}
27... Bxe3 {[%clk 0:00:20.3]} 28. Qxe3 {[%clk 0:00:04.6]} 28... Qb4 {[%clk
0:00:16.6]} 29. Qxh6+ {[%clk 0:00:04.5]} 29... Ke7 {[%clk 0:00:15.8]} 30. Rxg8
{[%clk 0:00:04.6]} 30... Qe1+ {[%clk 0:00:14.8]} 31. Kg2 {[%clk 0:00:05.3]}
31... Bd5+ {[%clk 0:00:15.4]} 32. Kh3 {[%clk 0:00:04.4]} 32... f6 {[%clk
0:00:10.5]} 33. Rg7+ {[%clk 0:00:03.8]} 33... Kd6 {[%clk 0:00:10]} 34. Qxf6+
{[%clk 0:00:04]} 34... Kc5 {[%clk 0:00:10.3]} 35. Qf8+ {[%clk 0:00:03.4]} 35...
Kc6 {[%clk 0:00:09.4]} 36. Qc8+ {[%clk 0:00:03]} 36... Kd6 {[%clk 0:00:09.6]}
37. Rxd7+ {[%clk 0:00:03.1]} 37... Ke6 {[%clk 0:00:08.9]} 38. Qe8+ {[%clk
0:00:02.2]} 38... Kf6 {[%clk 0:00:08.6]} 39. Qe7# {[%clk 0:00:02.8]} 1-0

[Event "Early-Titled-Tuesday-Blitz-January-16-2024"]
[Site "Chess.com"]
[Date "2024.01.16"]
[Round "10"]
[White "Gryffindorac8"]
[Black "ural58"]
[Result "0-1"]
[WhiteElo "2365"]
[BlackElo "2482"]
[TimeControl "180+1"]
[EndTime "9:57:55 PST"]
[Termination "ural58 won by resignation"]

1. d4 {[%clk 0:03:00.9]} 1... d5 {[%clk 0:02:59]} 2. c4 {[%clk 0:03:00.6]} 2...
e5 {[%clk 0:02:58.9]} 3. dxe5 {[%clk 0:02:59.8]} 3... d4 {[%clk 0:02:59.1]} 4.
Nf3 {[%clk 0:02:58.6]} 4... Nc6 {[%clk 0:02:59.1]} 5. g3 {[%clk 0:02:55.1]} 5...
Nge7 {[%clk 0:02:58.8]} 6. Bg2 {[%clk 0:02:54.9]} 6... Ng6 {[%clk 0:02:59.2]} 7.
O-O {[%clk 0:02:51]} 7... Ngxe5 {[%clk 0:02:58.6]} 8. Nxe5 {[%clk 0:02:37.6]}
8... Nxe5 {[%clk 0:02:58]} 9. b3 {[%clk 0:02:37.3]} 9... Be7 {[%clk 0:02:48.1]}
10. Bb2 {[%clk 0:02:35.5]} 10... c5 {[%clk 0:02:47.9]} 11. Nd2 {[%clk
0:02:22.2]} 11... O-O {[%clk 0:02:46.1]} 12. a3 {[%clk 0:02:13.6]} 12... Qc7
{[%clk 0:02:37.5]} 13. b4 {[%clk 0:02:03.6]} 13... Be6 {[%clk 0:02:26.3]} 14.
bxc5 {[%clk 0:01:57.1]} 14... Rad8 {[%clk 0:02:24.7]} 15. Qb3 {[%clk 0:01:50.1]}
15... Bxc5 {[%clk 0:02:20.9]} 16. Rac1 {[%clk 0:01:44.9]} 16... b6 {[%clk
0:02:20.5]} 17. Rfd1 {[%clk 0:01:40.4]} 17... Rfe8 {[%clk 0:02:19.3]} 18. Ne4
{[%clk 0:01:30.6]} 18... h6 {[%clk 0:02:14.9]} 19. Nxc5 {[%clk 0:01:14.5]} 19...
bxc5 {[%clk 0:02:14.2]} 20. e3 {[%clk 0:01:14]} 20... Bg4 {[%clk 0:02:12.6]} 21.
exd4 {[%clk 0:01:10.8]} 21... Bxd1 {[%clk 0:02:10.1]} 22. Rxd1 {[%clk
0:01:10.5]} 22... cxd4 {[%clk 0:02:08.5]} 23. Bxd4 {[%clk 0:01:00.4]} 23... Qxc4
{[%clk 0:02:06.4]} 24. Qxc4 {[%clk 0:00:28.4]} 24... Nxc4 {[%clk 0:02:04.9]} 25.
Bf3 {[%clk 0:00:28.5]} 25... Re7 {[%clk 0:01:43]} 26. Bc3 {[%clk 0:00:19.5]}
26... Rxd1+ {[%clk 0:01:41]} 27. Bxd1 {[%clk 0:00:20.4]} 27... Nxa3 {[%clk
0:01:39.9]} 28. Bb4 {[%clk 0:00:19.7]} 28... Re4 {[%clk 0:01:15.4]} 29. Ba5
{[%clk 0:00:15.7]} 29... Nc4 {[%clk 0:01:11.7]} 30. Bc3 {[%clk 0:00:11]} 30...
Re8 {[%clk 0:01:00.4]} 31. Bf3 {[%clk 0:00:09.3]} 31... Ne5 {[%clk 0:00:58.3]}
32. Bd5 {[%clk 0:00:08.8]} 32... Ng4 {[%clk 0:00:52.1]} 33. Kg2 {[%clk
0:00:07.6]} 33... Re2 {[%clk 0:00:45.7]} 34. Kf3 {[%clk 0:00:07.6]} 34... Rc2
{[%clk 0:00:42.3]} 35. Be1 {[%clk 0:00:05.5]} 35... Ne5+ {[%clk 0:00:35.4]} 36.
Ke4 {[%clk 0:00:04.1]} 36... Nd7 {[%clk 0:00:34.8]} 37. Bb4 {[%clk 0:00:02.6]}
37... Nf6+ {[%clk 0:00:33.4]} 38. Ke5 {[%clk 0:00:01.2]} 38... Nxd5 {[%clk
0:00:32.7]} 39. Kxd5 {[%clk 0:00:02.1]} 39... Rxf2 {[%clk 0:00:32.5]} 40. h4
{[%clk 0:00:02.3]} 40... Rf3 {[%clk 0:00:24.4]} 41. Bd6 {[%clk 0:00:01.9]} 41...
Rd3+ {[%clk 0:00:24.2]} 42. Kc6 {[%clk 0:00:02.6]} 42... Rxd6+ {[%clk
0:00:24.1]} 43. Kxd6 {[%clk 0:00:03.5]} 0-1

[Event "Early-Titled-Tuesday-Blitz-January-16-2024"]
[Site "Chess.com"]
[Date "2024.01.16"]
[Round "10"]
[White "GalaxyRoman"]
[Black "NoHeThTo"]
[Result "1-0"]
[WhiteElo "2875"]
[BlackElo "2713"]
[TimeControl "180+1"]
[EndTime "9:57:57 PST"]
[Termination "GalaxyRoman won by resignation"]

1. e4 {[%clk 0:03:00.9]} 1... c5 {[%clk 0:02:56.4]} 2. Nc3 {[%clk 0:03:00.7]}
2... g6 {[%clk 0:02:56.2]} 3. f4 {[%clk 0:03:01.2]} 3... Bg7 {[%clk 0:02:56.3]}
4. Nf3 {[%clk 0:03:02.1]} 4... Nc6 {[%clk 0:02:56.8]} 5. Bb5 {[%clk 0:03:02.3]}
5... Nd4 {[%clk 0:02:57.4]} 6. O-O {[%clk 0:03:01.9]} 6... e6 {[%clk 0:02:57.1]}
7. e5 {[%clk 0:03:01.5]} 7... a6 {[%clk 0:02:50.6]} 8. Bd3 {[%clk 0:03:00.4]}
8... d6 {[%clk 0:02:50.1]} 9. Ne4 {[%clk 0:03:00.4]} 9... Nxf3+ {[%clk
0:02:28.3]} 10. Qxf3 {[%clk 0:03:01.3]} 10... d5 {[%clk 0:02:27.4]} 11. Nd6+
{[%clk 0:03:00.3]} 11... Kf8 {[%clk 0:02:26.2]} 12. c4 {[%clk 0:02:52.5]} 12...
Ne7 {[%clk 0:02:21.4]} 13. b4 {[%clk 0:02:37.7]} 13... cxb4 {[%clk 0:02:08]} 14.
Bb2 {[%clk 0:02:35.9]} 14... Bd7 {[%clk 0:02:05.9]} 15. c5 {[%clk 0:02:24.6]}
15... Bc6 {[%clk 0:02:02.7]} 16. g4 {[%clk 0:02:20.8]} 16... h5 {[%clk
0:02:00.9]} 17. h3 {[%clk 0:02:12.9]} 17... hxg4 {[%clk 0:01:55.8]} 18. hxg4
{[%clk 0:02:13.8]} 18... d4 {[%clk 0:01:50.3]} 19. Be4 {[%clk 0:02:09.6]} 19...
Nd5 {[%clk 0:01:33.6]} 20. g5 {[%clk 0:02:02.4]} 20... Rh4 {[%clk 0:01:17.9]}
21. Qg3 {[%clk 0:02:00]} 21... Rh5 {[%clk 0:01:15.5]} 22. Bxd4 {[%clk
0:01:48.4]} 22... Ne7 {[%clk 0:01:14.1]} 23. Bxc6 {[%clk 0:01:43.3]} 23... bxc6
{[%clk 0:01:09.7]} 24. a3 {[%clk 0:01:34.4]} 24... Nf5 {[%clk 0:01:00.2]} 25.
Qd3 {[%clk 0:01:30]} 25... Ke7 {[%clk 0:00:42.3]} 26. Bf2 {[%clk 0:01:12.1]}
26... Nxd6 {[%clk 0:00:26.5]} 27. Qxd6+ {[%clk 0:00:54.4]} 27... Qxd6 {[%clk
0:00:26.2]} 28. cxd6+ {[%clk 0:00:55.3]} 28... Kd7 {[%clk 0:00:24.4]} 29. axb4
{[%clk 0:00:55.2]} 29... Bxe5 {[%clk 0:00:21.6]} 30. fxe5 {[%clk 0:00:47.4]}
30... Rxg5+ {[%clk 0:00:19.4]} 31. Bg3 {[%clk 0:00:47.8]} 31... Rxg3+ {[%clk
0:00:16.7]} 32. Kh2 {[%clk 0:00:48]} 32... Rg5 {[%clk 0:00:15.5]} 33. Rxf7+
{[%clk 0:00:47.9]} 33... Ke8 {[%clk 0:00:15.9]} 34. Rh7 {[%clk 0:00:45.8]} 34...
Rh5+ {[%clk 0:00:13]} 35. Rxh5 {[%clk 0:00:45.6]} 35... gxh5 {[%clk 0:00:13.9]}
36. Rg1 {[%clk 0:00:42.5]} 36... Kf7 {[%clk 0:00:14.1]} 37. Rf1+ {[%clk
0:00:42.8]} 37... Ke8 {[%clk 0:00:13.8]} 38. Rf6 {[%clk 0:00:42.9]} 38... a5
{[%clk 0:00:14]} 39. bxa5 {[%clk 0:00:41.7]} 39... Rxa5 {[%clk 0:00:13.9]} 40.
Rxe6+ {[%clk 0:00:42.4]} 40... Kd8 {[%clk 0:00:13.3]} 41. Kg3 {[%clk 0:00:34.5]}
41... Rd5 {[%clk 0:00:13]} 42. Kf4 {[%clk 0:00:33]} 42... Rxd2 {[%clk
0:00:13.1]} 43. Rh6 {[%clk 0:00:33.6]} 43... c5 {[%clk 0:00:10.9]} 44. Kf5
{[%clk 0:00:33.3]} 44... c4 {[%clk 0:00:11.5]} 45. Ke6 {[%clk 0:00:33.6]} 45...
Kc8 {[%clk 0:00:12.1]} 46. Rh8+ {[%clk 0:00:33]} 46... Kb7 {[%clk 0:00:12.1]}
47. Rxh5 {[%clk 0:00:30.8]} 47... c3 {[%clk 0:00:11.9]} 48. Rh3 {[%clk
0:00:31.2]} 48... c2 {[%clk 0:00:12.5]} 49. Rc3 {[%clk 0:00:31.3]} 49... Kb6
{[%clk 0:00:12.5]} 50. d7 {[%clk 0:00:30.4]} 50... Kb5 {[%clk 0:00:12.9]} 51.
Rxc2 {[%clk 0:00:30.4]} 51... Rxc2 {[%clk 0:00:13.8]} 52. d8=Q {[%clk
0:00:30.7]} 52... Kb4 {[%clk 0:00:14.7]} 53. Qd5 {[%clk 0:00:30.6]} 53... Kc3
{[%clk 0:00:14.9]} 54. Qc5+ {[%clk 0:00:30.8]} 54... Kd3 {[%clk 0:00:15.5]} 55.
Qxc2+ {[%clk 0:00:31.7]} 55... Kxc2 {[%clk 0:00:16.4]} 56. Kd6 {[%clk
0:00:32.2]} 1-0

[Event "Early-Titled-Tuesday-Blitz-January-16-2024"]
[Site "Chess.com"]
[Date "2024.01.16"]
[Round "10"]
[White "noblerone"]
[Black "ChessSwole"]
[Result "0-1"]
[WhiteElo "2509"]
[BlackElo "2686"]
[TimeControl "180+1"]
[EndTime "9:57:57 PST"]
[Termination "ChessSwole won on time"]

1. e4 {[%clk 0:02:52.9]} 1... c5 {[%clk 0:03:00]} 2. Nf3 {[%clk 0:02:52.2]} 2...
d6 {[%clk 0:03:00.5]} 3. Nc3 {[%clk 0:02:52.2]} 3... Nf6 {[%clk 0:03:00.7]} 4.
Bc4 {[%clk 0:02:52.4]} 4... e6 {[%clk 0:02:59.6]} 5. d3 {[%clk 0:02:52.4]} 5...
Be7 {[%clk 0:02:58.6]} 6. O-O {[%clk 0:02:51.7]} 6... Nc6 {[%clk 0:02:59.1]} 7.
a4 {[%clk 0:02:50.9]} 7... O-O {[%clk 0:02:58.5]} 8. Ba2 {[%clk 0:02:48.8]} 8...
a6 {[%clk 0:02:58.2]} 9. Ne2 {[%clk 0:02:48.8]} 9... b5 {[%clk 0:02:54.6]} 10.
Ng3 {[%clk 0:02:44.9]} 10... Bb7 {[%clk 0:02:54.5]} 11. c3 {[%clk 0:02:40]}
11... Qc7 {[%clk 0:02:50.3]} 12. Re1 {[%clk 0:02:32]} 12... Rfd8 {[%clk
0:02:40.7]} 13. h3 {[%clk 0:02:27]} 13... Ne5 {[%clk 0:02:39.5]} 14. Nxe5 {[%clk
0:02:11.6]} 14... dxe5 {[%clk 0:02:40.4]} 15. Qe2 {[%clk 0:02:11.6]} 15... h6
{[%clk 0:02:34.2]} 16. Be3 {[%clk 0:02:00.2]} 16... Rd7 {[%clk 0:02:30.2]} 17.
axb5 {[%clk 0:01:57.5]} 17... axb5 {[%clk 0:02:31.1]} 18. Bb3 {[%clk 0:01:45.4]}
18... Rad8 {[%clk 0:02:29.4]} 19. Bc2 {[%clk 0:01:45]} 19... Qb8 {[%clk
0:02:21.3]} 20. Ra5 {[%clk 0:01:39.5]} 20... Bc6 {[%clk 0:02:19.6]} 21. Rea1
{[%clk 0:01:39.7]} 21... b4 {[%clk 0:02:04.2]} 22. Bxc5 {[%clk 0:01:03.4]} 22...
bxc3 {[%clk 0:01:57.1]} 23. bxc3 {[%clk 0:01:03]} 23... Qb2 {[%clk 0:01:49]} 24.
Bxe7 {[%clk 0:00:59.3]} 24... Rxe7 {[%clk 0:01:49.9]} 25. c4 {[%clk 0:00:52.2]}
25... Rb7 {[%clk 0:01:37]} 26. R5a2 {[%clk 0:00:32.4]} 26... Qc3 {[%clk
0:01:31.1]} 27. Qe1 {[%clk 0:00:17.8]} 27... Qd4 {[%clk 0:01:26.8]} 28. Qe3
{[%clk 0:00:17.4]} 28... Qc3 {[%clk 0:01:27.1]} 29. Qe1 {[%clk 0:00:17.6]} 29...
Qd4 {[%clk 0:01:27.6]} 30. Qe3 {[%clk 0:00:18]} 30... Qd6 {[%clk 0:01:28.2]} 31.
Ra8 {[%clk 0:00:16.8]} 31... Rbb8 {[%clk 0:01:27.8]} 32. Rxb8 {[%clk 0:00:16.9]}
32... Rxb8 {[%clk 0:01:28.7]} 33. Rb1 {[%clk 0:00:16.7]} 33... Ra8 {[%clk
0:01:28.1]} 34. Qb6 {[%clk 0:00:16.6]} 34... Nd7 {[%clk 0:01:23]} 35. Qb2 {[%clk
0:00:13.1]} 35... Rb8 {[%clk 0:01:14.9]} 36. Qc1 {[%clk 0:00:12.5]} 36... Ra8
{[%clk 0:01:13.2]} 37. Nf1 {[%clk 0:00:12]} 37... Nc5 {[%clk 0:01:12.6]} 38. Qd1
{[%clk 0:00:10.5]} 38... Qd4 {[%clk 0:01:11.1]} 39. Ne3 {[%clk 0:00:10.8]} 39...
Ra2 {[%clk 0:01:08.1]} 40. Rb8+ {[%clk 0:00:07.5]} 40... Kh7 {[%clk 0:01:07.6]}
41. Rb1 {[%clk 0:00:08.4]} 41... Na4 {[%clk 0:00:58.2]} 42. Bxa4 {[%clk
0:00:07.5]} 42... Bxa4 {[%clk 0:00:59.1]} 43. Qf1 {[%clk 0:00:06.6]} 43... Rd2
{[%clk 0:00:55.6]} 44. Rc1 {[%clk 0:00:04.9]} 44... Rxd3 {[%clk 0:00:53.8]} 45.
c5 {[%clk 0:00:05.2]} 45... Qxe4 {[%clk 0:00:52.1]} 46. Ng4 {[%clk 0:00:04.5]}
46... Bc6 {[%clk 0:00:49.2]} 47. f3 {[%clk 0:00:04.7]} 47... Qd4+ {[%clk
0:00:49.1]} 48. Kh1 {[%clk 0:00:05.3]} 48... e4 {[%clk 0:00:46.4]} 49. fxe4
{[%clk 0:00:03.1]} 49... Qxe4 {[%clk 0:00:47.1]} 50. Kh2 {[%clk 0:00:02.2]}
50... h5 {[%clk 0:00:43.9]} 51. Qxf7 {[%clk 0:00:01.1]} 51... hxg4 {[%clk
0:00:40.5]} 52. Qh5+ {[%clk 0:00:01.4]} 52... Kg8 {[%clk 0:00:41.2]} 53. Qe8+
{[%clk 0:00:01.6]} 53... Bxe8 {[%clk 0:00:41.4]} 0-1